bitfinex-derivatives/quotes_SOLF0:USTF0_20260310
["timestamp","ask_amount","ask_price","bid_price","bid_amount"]
[1773128882677,3.41534784,86.59,86.541,4.72150292]
[1773128883077,4.93687715,86.595,86.543,4.72150292]
[1773128883478,15.61019167,86.594,86.546,4.91404656]
[1773128884376,15.61119167,86.586,86.546,4.91404656]
[1773128887676,10.394,86.577,86.546,4.91404656]
[1773128887880,3.41534784,86.58,86.546,4.91404656]
[1773128888883,5.21819167,86.586,86.546,4.91404656]
[1773128889386,5.21819167,86.584,86.546,4.91404656]
[1773128890786,5.21819167,86.58,86.531,4.91404656]
[1773128890987,5.21819167,86.579,86.531,4.91404656]
[1773128891386,10.393,86.588,86.534,4.91404656]
[1773128892586,5.21819167,86.587,86.546,4.91404656]
[1773128894891,5.21819167,86.587,86.548,4.91404656]
[1773128897181,5.21819167,86.587,86.552,4.91404656]
[1773128901087,10.394,86.579,86.542,4.91404656]
[1773128901287,10.394,86.579,86.502,55.437]
[1773128901288,5.21819167,86.569,86.519,4.91404656]
[1773128902498,5.21819167,86.567,86.52,4.91404656]
[1773128903498,5.21819167,86.567,86.522,4.91404656]
[1773128909100,5.21819167,86.565,86.522,4.91404656]
[1773128909501,8.63353951,86.56,86.522,4.91404656]
[1773128911602,10.395,86.572,86.522,4.91404656]
[1773128911901,3.41534784,86.58,86.534,4.91404656]
[1773128913604,3.41534784,86.58,86.536,4.91404656]
[1773128917712,8.30361906,86.58,86.536,4.91404656]
[1773128918405,8.30361906,86.59,86.542,5.13034191]
[1773128918612,3.41534784,86.6,86.542,5.13034191]
[1773128918815,8.56545625,86.599,86.542,5.13034191]
[1773128919011,8.56545625,86.598,86.542,5.13034191]
[1773128919210,8.56545625,86.597,86.542,5.13034191]
[1773128919411,4.88827122,86.599,86.553,5.13034191]
[1773128919612,8.56492238,86.598,86.553,5.13034191]
[1773128919813,8.56492238,86.597,86.553,5.13034191]
[1773128920016,4.88827122,86.599,86.553,5.13034191]
[1773128920211,8.56492238,86.598,86.553,5.13034191]
[1773128920406,8.56492238,86.597,86.553,5.13034191]
[1773128920610,4.88827122,86.599,86.553,5.13034191]
[1773128920812,8.56449369,86.598,86.553,5.13034191]
[1773128921013,8.56449369,86.597,86.553,5.13034191]
[1773128921213,15.28027122,86.597,86.553,5.13034191]
[1773128921414,3.41534784,86.59,86.553,5.13034191]
[1773128922017,4.88827122,86.596,86.553,5.13034191]
[1773128922813,10.392,86.594,86.553,5.13034191]
[1773128923012,15.28027122,86.594,86.553,5.13034191]
[1773128924210,10.392,86.594,86.553,5.13034191]
[1773128924415,4.88827122,86.593,86.553,5.13034191]
[1773128925320,4.88827122,86.579,86.542,5.13034191]
[1773128929327,3.41534784,86.58,86.544,5.13034191]
[1773128929521,4.88827122,86.589,86.544,5.13034191]
[1773128930427,4.88827122,86.589,86.548,5.13034191]
[1773128931822,4.88827122,86.586,86.548,5.13034191]
[1773128933328,15.5415688,86.583,86.548,5.13034191]
[1773128933833,5.1475688,86.583,86.548,5.13034191]
[1773128935425,10.395,86.575,86.548,5.13034191]
[1773128935629,5.1475688,86.583,86.548,5.13034191]
[1773128936329,15.5415688,86.583,86.548,5.13034191]
[1773128936528,5.1475688,86.583,86.548,5.13034191]
[1773128940625,15.5395688,86.594,86.548,5.13034191]
[1773128940831,5.1475688,86.609,86.551,5.07054641]
[1773128941031,3.41548132,86.6,86.551,5.07054641]
[1773128941535,8.56305012,86.6,86.551,5.07054641]
[1773128942437,8.56305012,86.6,86.56,5.07054641]
[1773128943228,5.1475688,86.599,86.549,5.07054641]
[1773128943429,5.1475688,86.579,86.538,5.07054641]
[1773128943933,5.35535064,86.569,86.527,5.05309376]
[1773128945342,5.35535064,86.569,86.529,5.05309376]
[1773128946337,5.35535064,86.569,86.521,5.05309376]
[1773128946636,5.35535064,86.569,86.523,5.05309376]
[1773128953339,15.75035064,86.569,86.523,5.05309376]
[1773128953535,5.35535064,86.569,86.525,5.05309376]
[1773128954544,10.394,86.577,86.529,5.05309376]
[1773128954744,5.35535064,86.579,86.531,5.05309376]
[1773128956444,5.35535064,86.579,86.533,5.05309376]
[1773128956644,10.393,86.585,86.533,5.05309376]
[1773128956947,5.35535064,86.604,86.555,5.05309376]
[1773128957141,3.41548132,86.61,86.561,5.05309376]
[1773128957940,5.35535064,86.609,86.561,5.05309376]
[1773128958341,5.35535064,86.609,86.565,10.396]
[1773128958541,5.35535064,86.609,86.565,15.44909376]
[1773128959444,5.35535064,86.599,86.541,5.05309376]
[1773128960449,5.35535064,86.599,86.547,15.45109376]
[1773128960649,5.35535064,86.589,86.548,5.05309376]
[1773128968358,5.35535064,86.599,86.551,5.05309376]
[1773128969460,5.35535064,86.599,86.55,3.41548132]
[1773128969461,5.35535064,86.599,86.555,5.05309376]
[1773128974057,5.35535064,86.599,86.557,5.24359107]
[1773128974967,5.35535064,86.599,86.559,5.24359107]
[1773128976469,5.35535064,86.599,86.561,5.24359107]
[1773128977066,8.5341235,86.623,86.577,5.24359107]
[1773128977272,3.41548132,86.63,86.581,5.24359107]
[1773128977772,3.41548132,86.61,86.561,5.24359107]
[1773128978068,5.29368852,86.609,86.561,5.24359107]
[1773128978669,5.29368852,86.621,86.571,5.24359107]
[1773128980476,5.29368852,86.621,86.574,5.24359107]
[1773128980766,3.41548132,86.62,86.574,5.24359107]
[1773128980968,5.29368852,86.617,86.574,5.24359107]
[1773128982674,5.29368852,86.609,86.561,5.24359107]
[1773128983174,3.41548132,86.63,86.58,3.41548132]
[1773128983364,3.41548132,86.63,86.581,5.24359107]
[1773128983767,5.29368852,86.628,86.581,5.24359107]
[1773128986773,3.41548132,86.62,86.581,5.24359107]
[1773128988379,5.29368852,86.643,86.584,5.24359107]
[1773128988580,3.41548132,86.64,86.591,5.24359107]
[1773128988770,5.29368852,86.639,86.591,5.24359107]
[1773128989777,3.41548132,86.62,86.591,5.24359107]
[1773128990272,5.49455742,86.629,86.591,5.24359107]
[1773128991075,5.49455742,86.629,86.576,5.5700772]
[1773128991281,8.49025115,86.677,86.562,5.5700772]
[1773128991282,3.41548132,86.61,86.562,5.5700772]
[1773128991682,3.41343695,86.61,86.562,5.5700772]
[1773128992578,3.41343695,86.61,86.565,5.5700772]
[1773128993079,10.389,86.618,86.565,5.5700772]
[1773128993281,5.49455742,86.622,86.574,5.5700772]
[1773128993482,3.41343695,86.63,86.581,5.5700772]
[1773128993681,3.41343695,86.63,86.532,20.8]
[1773128993682,5.49455742,86.648,86.591,5.5700772]
[1773128993985,5.49455742,86.679,86.63,8.98351415]
[1773128994380,5.49455742,86.679,86.631,5.5700772]
[1773128994577,5.49455742,86.712,86.661,5.5700772]
[1773128994980,5.49455742,86.709,86.661,5.5700772]
[1773128995281,5.49455742,86.699,86.647,5.5700772]
[1773128995778,5.49455742,86.699,86.65,3.41343695]
[1773128996179,5.49455742,86.699,86.648,5.5700772]
[1773128996979,5.49455742,86.689,86.634,5.5700772]
[1773128997375,3.41343695,86.68,86.634,5.5700772]
[1773128997580,5.49455742,86.689,86.641,5.5700772]
[1773128998878,3.41343695,86.68,86.641,5.5700772]
[1773128999580,5.49455742,86.689,86.641,5.5700772]
[1773129000176,3.41343695,86.7,86.651,5.5700772]
[1773129001488,5.49455742,86.699,86.651,5.5700772]
[1773129002087,5.49455742,86.699,86.6,34.63]
[1773129002088,5.49455742,86.679,86.633,10.388]
[1773129002287,5.49455742,86.679,86.629,5.5700772]
[1773129002884,5.49455742,86.735,86.639,5.5700772]
[1773129003191,5.49455742,86.735,86.582,338.686]
[1773129003192,3.41343695,86.67,86.627,5.5700772]
[1773129003787,5.46314195,86.659,86.61,5.56197846]
[1773129004987,5.46314195,86.659,86.611,5.56197846]
[1773129005490,5.46314195,86.659,86.62,10.389]
[1773129006694,5.46314195,86.659,86.612,5.56197846]
[1773129007489,3.41343695,86.65,86.612,5.56197846]
[1773129007987,3.41343695,86.65,86.602,10.391]
[1773129007988,5.46314195,86.649,86.602,10.391]
[1773129008189,3.41343695,86.64,86.602,10.391]
[1773129009184,3.41343695,86.64,86.602,15.95297846]
[1773129009381,5.46314195,86.649,86.602,15.95297846]
[1773129009582,5.46314195,86.649,86.609,10.39]
[1773129012892,3.41343695,86.63,86.59,5.56197846]
[1773129013089,5.46314195,86.639,86.59,5.56197846]
[1773129013493,5.46314195,86.639,86.601,10.391]
[1773129013694,5.46314195,86.639,86.59,5.56197846]
[1773129013893,3.41343695,86.63,86.59,5.56197846]
[1773129014392,3.41343695,86.65,86.594,5.56197846]
[1773129014592,8.8765789,86.65,86.594,5.56197846]
[1773129015091,3.41343695,86.64,86.594,5.56197846]
[1773129015393,3.41343695,86.64,86.6,5.56197846]
[1773129016493,3.41343695,86.64,86.602,10.391]
[1773129016891,3.41343695,86.64,86.603,5.56197846]
[1773129017086,5.46314195,86.649,86.603,5.56197846]
[1773129018392,5.46314195,86.649,86.604,10.391]
[1773129019892,5.46314195,86.649,86.605,5.56197846]
[1773129022795,5.46314195,86.662,86.611,5.56197846]
[1773129023298,8.8765789,86.66,86.611,5.56197846]
[1773129023594,5.46314195,86.619,86.581,5.56197846]
[1773129023899,3.41343695,86.61,86.581,5.56197846]
[1773129024093,5.46314195,86.619,86.581,5.56197846]
[1773129024292,5.46314195,86.619,86.582,15.95597846]
[1773129024997,3.41343695,86.61,86.582,5.56197846]
[1773129025390,5.46314195,86.619,86.582,5.56197846]
[1773129025792,5.46314195,86.619,86.582,15.95597846]
[1773129026391,5.46314195,86.619,86.583,5.56197846]
[1773129030198,5.46314195,86.619,86.582,10.394]
[1773129030199,8.8765789,86.61,86.573,10.395]
[1773129030498,3.41343695,86.63,86.58,3.41343695]
[1773129030694,3.41343695,86.63,86.581,5.56197846]
[1773129031394,5.46314195,86.629,86.583,5.56197846]
[1773129032601,5.46314195,86.629,86.585,5.56197846]
[1773129033400,5.46314195,86.629,86.589,15.95497846]
[1773129033594,5.46314195,86.629,86.59,5.58694505]
[1773129034100,5.46314195,86.629,86.594,10.392]
[1773129034989,5.46314195,86.629,86.59,5.58694505]
[1773129036301,5.46314195,86.629,86.592,5.58694505]
[1773129037802,3.41343695,86.64,86.594,5.58694505]
[1773129038302,8.83268803,86.64,86.594,5.58694505]
[1773129038599,5.41925108,86.639,86.596,5.58694505]
[1773129038904,5.41925108,86.639,86.58,3.41343695]
[1773129038905,5.41925108,86.639,86.581,5.58694505]
[1773129040403,5.41925108,86.635,86.582,5.58694505]
[1773129040704,3.41343695,86.63,86.582,5.58694505]
[1773129041199,5.41925108,86.629,86.582,5.58694505]
[1773129041400,5.41925108,86.619,86.582,5.58694505]
[1773129043005,5.41925108,86.642,86.591,5.58694505]
[1773129043707,5.41925108,86.642,86.601,5.58694505]
[1773129044608,5.41925108,86.629,86.575,5.58694505]
[1773129044806,5.41925108,86.629,86.58,3.41343695]
[1773129045007,5.41925108,86.629,86.581,5.58694505]
[1773129045404,5.41925108,86.629,86.585,5.58694505]
[1773129045603,5.41925108,86.641,86.591,5.58694505]
[1773129045802,5.41925108,86.639,86.591,5.58694505]
[1773129046006,5.41925108,86.629,86.58,9.000382]
[1773129046202,5.41925108,86.629,86.581,5.58694505]
[1773129047506,5.41925108,86.629,86.583,5.58694505]
[1773129048510,5.41925108,86.641,86.591,5.58694505]
[1773129049409,5.41925108,86.641,86.601,5.58694505]
[1773129050514,5.64642078,86.639,86.591,10.393]
[1773129050713,5.64642078,86.639,86.592,5.34332746]
[1773129051714,5.64642078,86.639,86.595,10.392]
[1773129051914,5.64642078,86.639,86.595,15.73532746]
[1773129052515,5.64642078,86.639,86.596,5.34332746]
[1773129053012,5.64642078,86.651,86.607,5.34332746]
[1773129053215,8.4828981,86.658,86.611,5.34332746]
[1773129053417,5.64642078,86.662,86.611,5.34332746]
[1773129053716,8.48289484,86.661,86.611,5.34332746]
[1773129054015,5.64642078,86.662,86.62,3.40944808]
[1773129054217,5.64642078,86.662,86.621,5.34332746]
[1773129054418,5.64642078,86.676,86.631,5.34332746]
[1773129055614,10.78883801,86.7,86.633,5.34332746]
[1773129055819,2.00809586,86.729,86.579,161.693]
[1773129055820,5.64642078,86.71,86.661,5.34332746]
[1773129056014,5.64642078,86.708,86.661,5.34332746]
[1773129059224,5.64642078,86.706,86.661,5.34332746]
[1773129059722,2.00750507,86.749,86.681,5.34332746]
[1773129059723,5.64642078,86.734,86.681,5.34332746]
[1773129059926,5.64642078,86.734,86.668,5.34332746]
[1773129059927,3.40944808,86.73,86.668,5.34332746]
[1773129060122,5.64642078,86.729,86.67,3.40944808]
[1773129060319,5.64642078,86.709,86.66,3.40944808]
[1773129061715,5.64642078,86.709,86.653,5.34332746]
[1773129061915,8.4654298,86.737,86.597,20.784]
[1773129061916,5.64642078,86.689,86.64,3.40944808]
[1773129062116,5.64642078,86.689,86.641,5.34332746]
[1773129062320,5.64642078,86.689,86.65,3.40944808]
[1773129062616,5.64642078,86.689,86.641,5.34332746]
[1773129065117,5.64642078,86.689,86.63,13.79744808]
[1773129065327,5.63635888,86.669,86.63,5.46972888]
[1773129066426,5.63635888,86.669,86.62,5.46972888]
[1773129066620,5.63635888,86.669,86.62,8.87917696]
[1773129067124,5.63635888,86.669,86.621,5.46972888]
[1773129067325,10.78883801,86.714,86.573,21.32497918]
[1773129067326,5.63635888,86.659,86.6,5.46972888]
[1773129067526,5.63635888,86.659,86.611,5.46972888]
[1773129068118,5.63635888,86.649,86.611,5.46972888]
[1773129068317,5.63635888,86.649,86.6,8.87917696]
[1773129068527,5.63635888,86.649,86.601,5.46972888]
[1773129069626,5.63635888,86.663,86.62,3.40944808]
[1773129069927,5.63635888,86.663,86.621,5.46972888]
[1773129072421,10.384,86.661,86.621,5.46972888]
[1773129072823,3.40944808,86.66,86.61,3.40944808]
[1773129073027,5.63635888,86.649,86.594,5.46972888]
[1773129074229,5.63635888,86.649,86.6,3.40944808]
[1773129075535,16.02635888,86.617,86.561,5.46972888]
[1773129075733,5.63635888,86.617,86.571,5.46972888]
[1773129076135,5.63635888,86.629,86.58,8.87917696]
[1773129076433,5.63635888,86.627,86.58,8.87917696]
[1773129076934,5.63635888,86.627,86.58,5.46972888]
[1773129077134,5.63635888,86.619,86.567,5.46972888]
[1773129077336,5.63635888,86.619,86.571,5.46972888]
[1773129077837,5.63635888,86.625,86.59,3.40944808]
[1773129078535,5.63635888,86.625,86.581,5.46972888]
[1773129079332,5.63635888,86.623,86.581,5.46972888]
[1773129079933,3.40944808,86.62,86.57,3.40944808]
[1773129080134,5.63635888,86.619,86.57,3.40944808]
[1773129080431,5.63635888,86.619,86.57,8.87917696]
[1773129080628,5.63635888,86.619,86.571,5.46972888]
[1773129082039,10.39,86.613,86.571,5.46972888]
[1773129083333,5.63635888,86.607,86.56,3.40944808]
[1773129083740,5.63635888,86.607,86.561,5.46972888]
[1773129084143,5.63635888,86.599,86.55,5.46972888]
[1773129085236,3.40944808,86.59,86.536,10.399]
[1773129085440,5.63635888,86.589,86.54,3.40944808]
[1773129085633,5.63635888,86.589,86.541,5.46972888]
[1773129087444,5.63635888,86.589,86.54,3.40944808]
[1773129087445,5.63635888,86.589,86.544,5.46972888]
[1773129088845,5.63635888,86.589,86.54,3.40944808]
[1773129088846,5.63635888,86.589,86.546,5.46972888]
[1773129091752,5.63635888,86.589,86.548,5.46972888]
[1773129091951,10.392,86.597,86.551,5.46972888]
[1773129092549,5.63635888,86.616,86.561,5.46972888]
[1773129092750,5.63635888,86.616,86.571,5.46972888]
[1773129094455,10.39,86.614,86.571,5.46972888]
[1773129094652,5.17240454,86.628,86.571,5.46972888]
[1773129094856,5.17240454,86.628,86.581,5.17399417]
[1773129095555,10.387,86.637,86.591,5.17399417]
[1773129095949,5.17240454,86.636,86.591,5.17399417]
[1773129097456,15.56040454,86.633,86.591,5.17399417]
[1773129097855,5.17240454,86.632,86.591,5.17399417]
[1773129101759,5.17240454,86.63,86.591,5.17399417]
[1773129102357,5.17240454,86.629,86.591,5.17399417]
[1773129102557,5.17240454,86.629,86.58,8.58344225]
[1773129102858,5.17240454,86.629,86.581,5.17399417]
[1773129103257,5.17240454,86.629,86.535,20.799]
[1773129103258,5.17240454,86.619,86.57,3.40944808]
[1773129103455,5.17240454,86.619,86.581,5.17399417]
[1773129107765,10.388,86.63,86.591,5.17399417]
[1773129108668,15.59137242,86.63,86.591,5.17399417]
[1773129108867,5.20337242,86.629,86.591,5.17399417]
[1773129111367,10.388,86.627,86.591,5.17399417]
[1773129112169,15.59137242,86.627,86.591,5.17399417]
[1773129112370,5.20337242,86.621,86.579,5.26280263]
[1773129113367,5.20337242,86.621,86.582,5.26280263]
[1773129116875,5.20337242,86.621,86.58,3.41223461]
[1773129117080,5.20337242,86.619,86.57,3.41223461]
[1773129117279,5.20337242,86.619,86.57,8.67503724]
[1773129117579,5.20337242,86.619,86.571,5.26280263]
[1773129117980,15.59437242,86.609,86.571,5.26280263]
[1773129118177,5.20337242,86.608,86.571,5.26280263]
[1773129118373,5.20337242,86.629,86.571,5.26280263]
[1773129119378,10.389,86.62,86.572,5.26280263]
[1773129119579,5.20337242,86.629,86.591,5.26280263]
[1773129119975,5.20337242,86.629,86.551,21.32497918]
[1773129119976,5.20337242,86.619,86.573,5.26280263]
[1773129120682,5.20337242,86.609,86.561,5.26280263]
[1773129121578,10.39,86.617,86.572,10.395]
[1773129121784,10.39,86.617,86.573,5.26280263]
[1773129123574,5.20337242,86.624,86.581,5.41228592]
[1773129124782,15.58232776,86.623,86.581,5.41228592]
[1773129127389,10.388,86.632,86.583,5.41228592]
[1773129127782,10.39,86.616,86.583,5.41228592]
[1773129128087,5.19332776,86.615,86.57,5.41228592]
[1773129131184,5.19332776,86.613,86.57,5.41228592]
[1773129134193,5.19332776,86.605,86.559,5.41228592]
[1773129134487,5.19332776,86.599,86.559,5.41228592]
[1773129135497,5.19332776,86.589,86.541,5.41228592]
[1773129136391,5.19332776,86.589,86.546,5.41228592]
[1773129138397,5.19332776,86.588,86.546,5.41228592]
[1773129139999,10.393,86.586,86.546,5.41228592]
[1773129142196,5.19332776,86.588,86.546,5.41228592]
[1773129144699,5.19332776,86.585,86.546,5.41228592]
[1773129145706,5.19332776,86.585,86.55,3.41223461]
[1773129146306,5.19332776,86.585,86.546,5.41228592]
[1773129156915,5.30815645,86.579,86.528,5.26572295]
[1773129157110,5.30815645,86.559,86.511,5.26572295]
[1773129157316,3.41223461,86.55,86.511,5.26572295]
[1773129157514,5.30815645,86.597,86.513,5.26572295]
[1773129157714,5.30815645,86.57,86.521,5.26572295]
[1773129158010,5.30815645,86.57,86.532,10.4]
[1773129158215,5.30815645,86.57,86.532,15.66572295]
[1773129158415,5.30815645,86.57,86.533,5.26572295]
[1773129159013,5.30815645,86.57,86.538,10.399]
[1773129159219,5.30815645,86.589,86.54,3.41223461]
[1773129159616,5.30815645,86.589,86.538,15.66472295]
[1773129160320,5.30815645,86.585,86.538,15.66472295]
[1773129160910,5.30815645,86.585,86.539,5.26572295]
[1773129162516,5.30815645,86.584,86.539,5.26572295]
[1773129163617,5.30815645,86.584,86.542,5.26572295]
[1773129165025,10.392,86.593,86.542,5.26572295]
[1773129165419,10.392,86.593,86.546,5.26572295]
[1773129166016,10.392,86.593,86.551,5.26572295]
[1773129167031,10.391,86.603,86.561,5.26572295]
[1773129167217,15.69915645,86.603,86.561,5.26572295]
[1773129167417,5.30815645,86.602,86.561,5.26572295]
[1773129168022,10.39,86.612,86.561,5.26572295]
[1773129168222,5.26336804,86.611,86.561,5.26572295]
[1773129169433,5.26336804,86.611,86.571,5.61704712]
[1773129175733,5.26336804,86.608,86.571,5.61704712]
[1773129175930,5.26336804,86.608,86.56,9.03031101]
[1773129176134,5.26336804,86.599,86.56,5.61704712]
[1773129178841,5.26336804,86.599,86.562,16.01304712]
[1773129179441,10.391,86.608,86.565,5.61704712]
[1773129179639,15.65436804,86.608,86.565,5.61704712]
[1773129179838,5.26336804,86.607,86.565,5.61704712]
[1773129180036,5.26336804,86.607,86.568,5.61704712]
[1773129180238,5.26336804,86.607,86.571,5.61704712]
[1773129181133,5.26336804,86.599,86.56,5.61704712]
[1773129184143,5.38564158,86.597,86.549,5.4988531]
[1773129184343,5.38564158,86.589,86.549,5.4988531]
[1773129184642,14.29751684,86.636,86.501,20.807]
[1773129184643,5.38564158,86.579,86.537,5.4988531]
[1773129185241,5.38564158,86.579,86.539,5.4988531]
[1773129186742,5.38564158,86.579,86.528,5.4988531]
[1773129186943,5.38564158,86.579,86.531,5.4988531]
[1773129187833,5.38564158,86.57,86.531,5.4988531]
[1773129188036,5.38564158,86.569,86.531,5.4988531]
[1773129188841,15.77964158,86.581,86.531,5.4988531]
[1773129190342,15.77964158,86.581,86.533,5.4988531]
[1773129191340,15.77964158,86.581,86.535,5.4988531]
[1773129192244,10.394,86.576,86.535,5.4988531]
[1773129192439,5.38564158,86.58,86.535,5.4988531]
[1773129192640,5.38564158,86.569,86.522,5.4988531]
[1773129193045,5.38564158,86.579,86.531,5.4988531]
[1773129193243,5.38564158,86.591,86.541,5.4988531]
[1773129193547,5.38564158,86.603,86.551,5.4988531]
[1773129193747,10.392,86.601,86.552,5.4988531]
[1773129193945,5.38564158,86.599,86.552,5.4988531]
[1773129195348,10.392,86.597,86.552,5.4988531]
[1773129199449,10.392,86.597,86.554,5.4988531]
[1773129200655,15.77764158,86.597,86.554,5.4988531]
[1773129201545,5.38564158,86.597,86.554,5.4988531]
[1773129201750,8.79890547,86.6,86.551,5.4988531]
[1773129201953,5.38564158,86.599,86.551,5.4988531]
[1773129202550,5.38564158,86.599,86.55,3.41326389]
[1773129202551,5.38564158,86.599,86.552,5.4988531]
[1773129203458,5.38564158,86.599,86.556,5.4988531]
[1773129204056,5.38564158,86.599,86.558,5.4988531]
[1773129204453,5.38564158,86.609,86.561,5.4988531]
[1773129204859,5.38564158,86.609,86.562,5.4988531]
[1773129205060,10.391,86.607,86.562,5.4988531]
[1773129205262,5.38564158,86.609,86.562,5.4988531]
[1773129205854,15.77664158,86.608,86.566,5.4988531]
[1773129206160,14.29751684,86.644,86.566,5.4988531]
[1773129206161,3.41326389,86.6,86.566,5.4988531]
[1773129206350,5.38564158,86.599,86.553,5.4988531]
[1773129206659,3.41326389,86.61,86.556,5.4988531]
[1773129206857,5.38564158,86.609,86.556,5.4988531]
[1773129207054,10.392,86.599,86.558,5.4988531]
[1773129207260,5.38564158,86.598,86.558,5.4988531]
[1773129208959,5.38564158,86.589,86.55,5.4988531]
[1773129216264,5.71269056,86.579,86.531,5.25863291]
[1773129216659,5.71269056,86.579,86.534,10.399]
[1773129217071,9.12595445,86.57,86.531,5.25863291]
[1773129217266,5.71269056,86.569,86.531,5.25863291]
[1773129220175,5.71269056,86.559,86.519,5.25863291]
[1773129220576,3.41326389,86.55,86.519,5.25863291]
[1773129220873,3.41326389,86.55,86.508,5.25863291]
[1773129221074,5.71269056,86.549,86.508,5.25863291]
[1773129221469,3.41326389,86.54,86.508,5.25863291]
[1773129222179,5.71269056,86.549,86.508,5.25863291]
[1773129222374,10.397,86.557,86.508,5.25863291]
[1773129222576,3.41326389,86.56,86.511,5.25863291]
[1773129223379,9.12595445,86.56,86.512,5.25863291]
[1773129224180,16.10969056,86.557,86.512,5.25863291]
[1773129228180,5.71269056,86.556,86.512,5.25863291]
[1773129230975,3.41326389,86.55,86.512,5.25863291]
[1773129231176,5.34479225,86.548,86.502,5.43525653]
[1773129231376,3.41326389,86.54,86.502,5.43525653]
[1773129232878,3.41326389,86.55,86.502,5.43525653]
[1773129234378,5.34479225,86.549,86.503,10.403]
[1773129234579,5.34479225,86.549,86.503,15.83825653]
[1773129234778,5.34479225,86.549,86.504,5.43525653]
[1773129236181,5.34479225,86.549,86.507,5.43525653]
[1773129236580,3.41838364,86.56,86.518,5.43525653]
[1773129236785,5.34479225,86.559,86.518,5.43525653]
[1773129237888,5.34479225,86.549,86.506,5.43525653]
[1773129240491,3.41838364,86.56,86.511,5.43525653]
[1773129241484,5.34479225,86.559,86.518,5.43525653]
[1773129242881,5.34479225,86.559,86.519,15.83625653]
[1773129243083,5.34479225,86.559,86.52,5.43525653]
[1773129244494,8.70618448,86.54,86.492,5.6913639]
[1773129245095,5.28780084,86.539,86.493,5.6913639]
[1773129245397,3.41838364,86.55,86.501,5.6913639]
[1773129245596,8.70618448,86.55,86.501,5.6913639]
[1773129245896,5.28780084,86.549,86.501,5.6913639]
[1773129246397,5.28780084,86.549,86.505,16.0943639]
[1773129246594,5.28780084,86.549,86.506,5.6913639]
[1773129248690,5.28780084,86.549,86.509,5.6913639]
[1773129251203,5.28780084,86.549,86.511,5.6913639]
[1773129252398,5.28780084,86.549,86.513,5.6913639]
[1773129252802,5.28780084,86.561,86.521,5.6913639]
[1773129254401,5.28780084,86.573,86.532,5.6913639]
[1773129254792,15.68080084,86.587,86.54,3.41838364]
[1773129254998,5.28780084,86.569,86.529,5.6913639]
[1773129255594,8.70618448,86.56,86.518,10.401]
[1773129255802,8.70618448,86.56,86.519,5.6913639]
[1773129256604,5.28780084,86.559,86.519,5.6913639]
[1773129259194,5.28780084,86.559,86.522,5.6913639]
[1773129259402,3.41838364,86.56,86.522,5.6913639]
[1773129260202,3.41838364,86.57,86.522,5.6913639]
[1773129260399,5.28780084,86.569,86.524,5.6913639]
[1773129262004,3.41838364,86.55,86.512,5.6913639]
[1773129262599,8.70618448,86.55,86.512,5.6913639]
[1773129263002,5.28780084,86.559,86.516,5.6913639]
[1773129264408,10.397,86.552,86.516,5.6913639]
[1773129264802,3.41838364,86.55,86.514,5.6913639]
[1773129265003,5.28780084,86.549,86.514,5.6913639]
[1773129271902,10.399,86.542,86.501,5.6913639]
[1773129272109,5.28780084,86.539,86.501,5.6913639]
[1773129272507,8.70618448,86.55,86.505,5.6913639]
[1773129272807,5.28780084,86.549,86.505,5.6913639]
[1773129273009,5.28780084,86.549,86.507,5.6913639]
[1773129273211,3.41838364,86.56,86.511,5.6913639]
[1773129274210,5.64624384,86.558,86.511,5.6913639]
[1773129274403,5.64624384,86.556,86.511,5.6913639]
[1773129274603,5.64624384,86.554,86.511,5.6913639]
[1773129274803,3.41838364,86.55,86.511,5.6913639]
[1773129275515,3.41838364,86.57,86.521,5.56661542]
[1773129275713,5.64624384,86.569,86.521,5.56661542]
[1773129275910,5.64624384,86.559,86.521,5.56661542]
[1773129276910,3.41838364,86.57,86.524,5.56661542]
[1773129277813,3.41838364,86.57,86.526,5.56661542]
[1773129278015,5.64624384,86.569,86.526,5.56661542]
[1773129284121,5.64624384,86.567,86.526,5.56661542]
[1773129288327,5.64624384,86.567,86.527,15.96661542]
[1773129289129,5.64624384,86.567,86.528,5.56661542]
[1773129289625,10.397,86.552,86.503,5.2176982]
[1773129289830,3.41838364,86.56,86.503,5.2176982]
[1773129290126,5.3455309,86.539,86.503,5.2176982]
[1773129296029,3.41851662,86.54,86.503,5.2176982]
[1773129296230,10.398,86.546,86.503,5.2176982]
[1773129298234,12.47277515,86.584,86.502,21.32497918]
[1773129298439,12.47277515,86.584,86.55,3.41851662]
[1773129298632,3.41851662,86.57,86.519,21.32497918]
[1773129298829,12.47277515,86.569,86.519,10.401]
[1773129299032,12.4986682,86.559,86.519,10.401]
[1773129300338,12.49836881,86.572,86.523,10.401]
[1773129301542,12.48984648,86.569,86.523,10.401]
[1773129304336,12.48984648,86.569,86.53,3.41851662]
[1773129304738,12.48984648,86.569,86.532,10.4]
[1773129304941,12.49165304,86.581,86.54,3.41851662]
[1773129305345,12.49165304,86.581,86.54,13.81751662]
[1773129305934,12.49132678,86.579,86.53,13.81851662]